{"text_format":"1","workbook":"xlsx","n_sheets":2,"sheets":["Cover Sheet","Manning Open Channel Flow"],"not_rendered":{"charts":2,"images":1,"macros":1,"external_links":0,"defined_names":1,"comments":0,"pivot_tables":0},"unopened":[],"bounds":{"document_bytes":16777216,"sheet_cells":100000,"rows_first":2000,"rows_last":500,"rows_between":2000,"halvings":0,"cell_chars":16384,"cell_head_chars":4096},"cells_cut":0,"cells_raw":0,"read":"whole","date_system":"1900"}

{"sheet":"Cover Sheet","index":0,"n_rows":35,"n_cols":32,"rows_kept":35,"cut":false,"hidden":false,"merged":[[39,7,39,8],[39,9,39,24],[39,25,39,29],[37,7,37,8],[37,9,37,24],[37,25,37,29],[38,7,38,8],[38,9,38,24],[38,25,38,29],[35,7,35,8],[35,9,35,24],[35,25,35,29],[36,7,36,8],[36,9,36,24],[36,25,36,29],[25,7,26,29],[28,7,28,23],[33,7,33,8],[33,9,33,24],[33,25,33,29],[34,7,34,8],[34,9,34,24],[34,25,34,29],[6,7,11,29],[13,7,15,29],[17,7,17,29],[19,7,20,29],[22,7,22,12],[23,7,23,29],[3,6,3,30],[3,31,3,35],[4,6,4,11],[4,12,4,18],[4,19,4,24],[4,25,4,30],[4,31,4,35],[0,1,0,5],[0,6,0,30],[0,31,0,35],[1,1,4,5],[1,6,1,11],[1,12,1,30],[1,31,1,35],[2,6,2,11],[2,12,2,30],[2,31,2,35]]}
[null,"Registered User:",null,null,null,null,"Free Trial Version - Not For Commercial Use",null,null,null,null,null,null,null,null,null,null,null,null,null,null,null,null,null,null,null,null,null,null,null,null,"© 2017 CivilWeb"]
[null,"Your Logo / Company Details Here",null,null,null,null,"Project:",null,null,null,null,null,null,null,null,null,null,null,null,null,null,null,null,null,null,null,null,null,null,null,null,"By:"]
[null,null,null,null,null,null,"Calculation:",null,null,null,null,null,"Manning Formula - Flow in Open Channel"]
[null,null,null,null,null,null,null,null,null,null,null,null,null,null,null,null,null,null,null,null,null,null,null,null,null,null,null,null,null,null,null,"Approved:"]
[null,null,null,null,null,null,"Sheet Number:",null,null,null,null,null,"Cover Sheet",null,null,null,null,null,null,"Date:"]
[]
[null,null,null,null,null,null,null,"Although all care and attention has been taken to ensure that this program is accurate, CivilWeb gives no guarentee that it is error free. In no event will Civil Web accept any responsibility for any errors or omissions from the program or from the user of the program, or for any special, incedental or consequential damages whatsoever arising from use of this program."]
[]
[]
[]
[]
[]
[]
[null,null,null,null,null,null,null,"This program should only be used by a suitably qualified Civil or Structural Engineer, and suitable efforts should be taken to verify the results."]
[]
[]
[]
[null,null,null,null,null,null,null,"Reverse-engineering or decompiling of this program is not allowed."]
[]
[null,null,null,null,null,null,null,"This program is registered to a single user, and should not be used by any other."]
[]
[]
[null,null,null,null,null,null,null,"Registered User;"]
[]
[]
[null,null,null,null,null,null,null,"By using this program you confirm your understanding and agreement with the above terms and conditions."]
[]
[]
[null,null,null,null,null,null,null,"This program remains the property of CivilWeb."]
[null,null,null,null,null,null,null,"www.civilweb-spreadsheets.com"]
[]
[null,null,null,null,null,null,null,"Revision Schedule"]
[]
[null,null,null,null,null,null,null,"Rev",null,"Changes",null,null,null,null,null,null,null,null,null,null,null,null,null,null,null,"Date"]
[null,null,null,null,null,null,null,0,null,"Original",null,null,null,null,null,null,null,null,null,null,null,null,null,null,null,"2017-04-18"]

{"sheet":"Manning Open Channel Flow","index":1,"n_rows":53,"n_cols":88,"rows_kept":53,"cut":false,"hidden":false,"merged":[[0,1,0,5],[0,6,0,30],[0,31,0,35],[4,6,4,11],[4,19,4,24],[1,1,4,5],[4,12,4,18],[4,25,4,30],[1,12,1,30],[2,12,2,30],[3,6,3,30],[2,6,2,11],[1,6,1,11],[13,19,13,21],[13,22,13,23],[14,19,14,21],[14,22,14,23],[1,31,1,35],[2,31,2,35],[3,31,3,35],[4,31,4,35],[10,32,10,33],[10,34,10,35],[11,31,11,33],[11,34,11,35],[21,7,21,22],[22,7,22,16],[22,17,22,20],[22,21,22,22],[23,7,23,16],[23,17,23,20],[23,21,23,22],[13,7,13,18],[14,7,14,18],[6,7,6,13],[11,17,11,18],[10,17,10,18],[9,17,9,18],[8,7,8,18],[9,7,9,13],[10,7,10,13],[11,7,11,13],[6,14,6,18],[11,14,11,16],[10,14,10,16],[9,14,9,16],[23,32,23,33],[23,34,23,35],[13,32,13,33],[13,34,13,35],[14,31,14,33],[14,34,14,35]]}
[null,"Registered User:",null,null,null,null,"Free Trial Version - Not For Commercial Use",null,null,null,null,null,null,null,null,null,null,null,null,null,null,null,null,null,null,null,null,null,null,null,null,"© 2017 CivilWeb"]
[null,"Your Logo / Company Details Here",null,null,null,null,"Project:",null,null,null,null,null,null,null,null,null,null,null,null,null,null,null,null,null,null,null,null,null,null,null,null,"By:",null,null,null,null,null,null,null,null,null,null,null,null,null,null,null,null,null,null,null,null,null,null,null,null,null,null,null,null,null,null,null,null,null,null,null,null,null,null,null,null,null,null,null,null,null,null,null,null,"Type of Channel","Triangular Cross Section",null,null,null,null,"Flow Area","Wetted Perimeter"]
[null,null,null,null,null,null,"Calculation:",null,null,null,null,null,"Manning Formula - Flow in Open Channel",null,null,null,null,null,null,null,null,null,null,null,null,null,null,null,null,null,null,null,null,null,null,null,null,null,null,null,null,null,null,null,null,null,null,null,null,null,null,null,null,null,null,null,null,null,null,null,null,null,null,null,null,null,"Trap","x",0,{"$f":"O11*AI12","v":2},{"$f":"BR3+O10","v":5},{"$f":"BS3+BR3","v":7},{"$f":"BT3","v":7},{"$f":"BU3","v":7},7,7,7,7,7,{"$f":"BQ3","v":0},null,null,null,null,null,"Trapezoidal",{"$f":"O10*O11+AI12*O11^2","v":10},{"$f":"O10+2*O11*SQRT(AI12^2+1)","v":8.6568542494923797}]
[null,null,null,null,null,null,null,null,null,null,null,null,null,null,null,null,null,null,null,null,null,null,null,null,null,null,null,null,null,null,null,"Approved:",null,null,null,null,null,null,null,null,null,null,null,null,null,null,null,null,null,null,null,null,null,null,null,null,null,null,null,null,null,null,null,null,null,null,null,"y",{"$f":"O11","v":2},0,0,{"$f":"BQ4","v":2},{"$f":"BT4","v":2},{"$f":"BU4","v":2},2,2,2,2,2,{"$f":"BQ4","v":2},"Dimensions",null,null,null,null,"Triangular",{"$f":"AI12*O11^2","v":4},{"$f":"2*O11*SQRT(AI12^2+1)","v":5.6568542494923806}]
[null,null,null,null,null,null,"Sheet Number:",null,null,null,null,null,1,null,null,null,null,null,null,"Date:",null,null,null,null,null,null,null,null,null,null,null,null,null,null,null,null,null,null,null,null,null,null,null,null,null,null,null,null,null,null,null,null,null,null,null,null,null,null,null,null,null,null,null,null,null,null,null,null,null,null,null,null,null,null,null,null,null,null,null,null,"Width",2,"m",null,null,"Parabolic",{"$f":"2/3*O10*O11","v":4},{"$f":"O10+8*O11^2/(3*O10)","v":6.5555555555555554}]
[null,null,null,null,null,null,null,null,null,null,null,null,null,null,null,null,null,null,null,null,null,null,null,null,null,null,null,null,null,null,null,null,null,null,null,null,null,null,null,null,null,null,null,null,null,null,null,null,null,null,null,null,null,null,null,null,null,null,null,null,null,null,null,null,null,null,"Tri","x",0,{"$f":"O11*AI12","v":2},{"$f":"BR6*2","v":4},{"$f":"BS6","v":4},{"$f":"BT6","v":4},4,4,4,4,4,4,{"$f":"BQ6","v":0},"Depth",3,"m",null,null,"Rectangular",{"$f":"O10*O11","v":6},{"$f":"O10+O11*2","v":7}]
[null,null,null,null,null,null,null,"Shape of Channel",null,null,null,null,null,null,"Trapezoidal",null,null,null,null,null,null,null,null,null,null,null,null,null,null,null,null,null,null,null,null,null,null,null,null,null,null,null,null,null,null,null,null,null,null,null,null,null,null,null,null,null,null,null,null,null,null,null,null,null,null,null,null,"y",{"$f":"O11","v":2},0,{"$f":"O11","v":2},{"$f":"BS7","v":2},{"$f":"BT7","v":2},2,2,2,2,2,2,{"$f":"BQ7","v":2},"Side Slope (only required for Trapezoid",2,"1 in ?",{"$f":"45*O12%","v":45}]
[null,null,null,null,null,null,null,null,null,null,null,null,null,null,null,null,null,null,null,null,null,null,null,null,null,null,null,null,null,null,null,null,null,null,null,null,null,null,null,null,null,null,null,null,null,null,null,null,null,null,null,null,null,null,null,null,null,null,null,null,null,null,null,null,null,null,null,null,null,null,null,null,null,null,null,null,null,null,null,null,"Coeff surface roughness",1.4E-2]
[null,null,null,null,null,null,null,"Dimensions",null,null,null,null,null,null,null,null,null,null,null,null,null,null,null,null,null,null,null,null,null,null,null,null,null,null,null,null,null,null,null,null,null,null,null,null,null,null,null,null,null,null,null,null,null,null,null,null,null,null,null,null,null,null,null,null,null,null,"para","x",0,{"$f":"BV9/5","v":0.3},{"$f":"$BV$9*2/5","v":0.6},{"$f":"$BV$9*3/5","v":0.9},{"$f":"$BV$9*4/5","v":1.2},{"$f":"O10/2","v":1.5},{"$f":"$BV9+$CA9*0.5*1/5","v":1.8},{"$f":"$BV9+$CA9*0.5*2/5","v":2.1},{"$f":"$BV9+$CA9*0.5*3/5","v":2.4},{"$f":"$BV9+$CA9*0.5*4/5","v":2.7},{"$f":"O10","v":3},{"$f":"BQ9","v":0},"Slope",0.01,"m/m"]
[null,null,null,null,null,null,null,"Width (W)",null,null,null,null,null,null,3,null,null,"m",null,null,null,null,null,null,null,null,null,null,null,null,null,null,null,null,null,null,null,null,null,null,null,null,null,null,null,null,null,null,null,null,null,null,null,null,null,null,null,null,null,null,null,null,null,null,null,null,null,"y",{"$f":"O11","v":2},{"$f":"BQ10/2","v":1},{"$f":"BQ10/4","v":0.5},{"$f":"BQ10/8","v":0.25},{"$f":"BQ10/16","v":0.125},0,{"$f":"BU10","v":0.125},{"$f":"BT10","v":0.25},{"$f":"BS10","v":0.5},{"$f":"BR10","v":1},{"$f":"O11","v":2},{"$f":"BQ10","v":2}]
[null,null,null,null,null,null,null,"Depth (D)",null,null,null,null,null,null,2,null,null,"m",null,null,null,null,null,null,null,null,null,null,null,null,null,{"$f":"IF(H12=\"Not Applicable\",\"\",\"=\")","v":"="},{"$f":"IF(H12=\"Not Applicable\",\"\",O12/100)","v":1},null,{"$f":"IF(H12=\"Not Applicable\",\"\",\"m/m\")","v":"m/m"}]
[null,null,null,null,null,null,null,{"$f":"IF(OR(O7=\"Trapezoidal\",O7=\"Triangular\"),\"Side Slopes (G)\",\"Not Applicable\")","v":"Side Slopes (G)"},null,null,null,null,null,null,100,null,null,"%",null,null,null,null,null,null,null,null,null,null,null,null,null,{"$f":"IF(H12=\"Not Applicable\",\"\",\"or 1 in\")","v":"or 1 in"},null,null,{"$f":"IF(H12=\"Not Applicable\",\"\",100/O12)","v":1},null,null,null,null,null,null,null,null,null,null,null,null,null,null,null,null,null,null,null,null,null,null,null,null,null,null,null,null,null,null,null,"Rec","x",0,0,{"$f":"O10","v":3},{"$f":"O10","v":3},{"$f":"BT12","v":3},{"$f":"BU12","v":3},3,3,3,3,3,{"$f":"BQ12","v":0},"Flow Area",{"$f":"VLOOKUP(O7,CH3:CJ6,2,FALSE)","v":10},"m2"]
[null,null,null,null,null,null,null,null,null,null,null,null,null,null,null,null,null,null,null,null,null,null,null,null,null,null,null,null,null,null,null,null,null,null,null,null,null,null,null,null,null,null,null,null,null,null,null,null,null,null,null,null,null,null,null,null,null,null,null,null,null,null,null,null,null,null,null,"y",{"$f":"O11","v":2},0,0,{"$f":"O11","v":2},{"$f":"BT13","v":2},{"$f":"BU13","v":2},2,2,2,2,2,{"$f":"BQ13","v":2},"Wetted Perimeter",{"$f":"VLOOKUP(O7,CH3:CJ6,3,FALSE)","v":8.6568542494923797},"m"]
[null,null,null,null,null,null,null,"Hydraulic Gradient (S)",null,null,null,null,null,null,null,null,null,null,null,1,null,null,"%",null,null,null,null,null,null,null,null,"=",{"$f":"T14/100","v":0.01},null,"m/m",null,null,null,null,null,null,null,null,null,null,null,null,null,null,null,null,null,null,null,null,null,null,null,null,null,null,null,null,null,null,null,null,null,null,null,null,null,null,null,null,null,null,null,null,null,null,null,null,null,2,3]
[null,null,null,null,null,null,null,"Roughness Coefficient (n)",null,null,null,null,null,null,null,null,null,null,null,1.4E-2,null,null,null,null,null,null,null,null,null,null,null,"or 1 in",null,null,{"$f":"100/T14","v":100},null,null,null,null,null,null,null,null,null,null,null,null,null,null,null,null,null,null,null,null,null,null,null,null,null,null,null,null,null,null,null,"master","x",{"$f":"IF($O$7=\"Trapezoidal\",BQ3,IF($O$7=\"Triangular\",BQ6,IF($O$7=\"Parabolic\",BQ9,BQ12)))","v":0},{"$f":"IF($O$7=\"Trapezoidal\",BR3,IF($O$7=\"Triangular\",BR6,IF($O$7=\"Parabolic\",BR9,BR12)))","v":2},5,7,7,7,7,7,7,7,7,{"$f":"MAX(BQ15:CA15)&\"m\"","v":"7m"},null,null,null,null,{"$f":"0.5*CG14*CH14+0.5*CG14*CH14","v":6}]
[null,null,null,null,null,null,null,null,null,null,null,null,null,null,null,null,null,null,null,null,null,null,null,null,null,null,null,null,null,null,null,null,null,null,null,null,null,null,null,null,null,null,null,null,null,null,null,null,null,null,null,null,null,null,null,null,null,null,null,null,null,null,null,null,null,null,null,"y",{"$f":"IF($O$7=\"Trapezoidal\",BQ4,IF($O$7=\"Triangular\",BQ7,IF($O$7=\"Parabolic\",BQ10,BQ13)))","v":2},{"$f":"IF($O$7=\"Trapezoidal\",BR4,IF($O$7=\"Triangular\",BR7,IF($O$7=\"Parabolic\",BR10,BR13)))","v":0},0,2,2,2,2,2,2,2,2,{"$f":"MAX(BQ16:CA16)&\"m\"","v":"2m"}]
[]
[null,null,null,null,null,null,null,null,null,null,null,null,null,null,null,null,null,null,null,null,null,null,null,null,null,null,null,null,null,null,null,null,null,null,null,null,null,null,null,null,null,null,null,null,null,null,null,null,null,null,null,null,null,null,null,null,null,null,null,null,null,null,null,null,null,null,null,null,{"$f":"BQ15","v":0},{"$f":"CA15","v":7}]
[null,null,null,null,null,null,null,null,null,null,null,null,null,null,null,null,null,null,null,null,null,null,null,null,null,null,null,null,null,null,null,null,null,null,null,null,null,null,null,null,null,null,null,null,null,null,null,null,null,null,null,null,null,null,null,null,null,null,null,null,null,null,null,null,null,null,null,null,{"$f":"BQ16","v":2},{"$f":"CA16","v":2}]
[]
[null,null,null,null,null,null,null,null,null,null,null,null,null,null,null,null,null,null,null,null,null,null,null,null,null,null,null,null,null,null,null,null,null,null,null,null,null,null,null,null,null,null,null,null,null,null,null,null,null,null,null,null,null,null,null,null,null,null,null,null,null,null,null,null,null,null,null,null,{"$f":"IF(MAX($BQ$15:$CA$16)>5,BQ15*(5/MAX($BQ$15:$CA$16)),BQ15)","v":0},{"$f":"IF(MAX($BQ$15:$CA$16)>5,BR15*(5/MAX($BQ$15:$CA$16)),BR15)","v":1.4285714285714286},3.5714285714285716,5,5,5,5,5,5,5,5]
[null,null,null,null,null,null,null,"Results",null,null,null,null,null,null,null,null,null,null,null,null,null,null,null,null,null,null,null,null,null,null,null,null,null,null,null,null,null,null,null,null,null,null,null,null,null,null,null,null,null,null,null,null,null,null,null,null,null,null,null,null,null,null,null,null,null,null,null,null,{"$f":"IF(MAX($BQ$15:$CA$16)>5,BQ16*(5/MAX($BQ$15:$CA$16)),BQ16)","v":1.4285714285714286},0,0,1.4285714285714286,1.4285714285714286,1.4285714285714286,1.4285714285714286,1.4285714285714286,1.4285714285714286,1.4285714285714286,1.4285714285714286]
[null,null,null,null,null,null,null,"Velocity (v)",null,null,null,null,null,null,null,null,null,{"$f":"(1/$T$15)*(($CD$12/$CD$13)^(2/3))*($AG$14^(1/2))","v":7.8637897579270488},null,null,null,"m/s"]
[null,null,null,null,null,null,null,"Flow (Q)",null,null,null,null,null,null,null,null,null,{"$f":"R23*CD12*1000","v":78637.897579270488},null,null,null,"l/s",null,null,null,null,null,null,null,null,null,"=",{"$f":"R24/1000","v":78.637897579270486},null,"m³/s",null,null,null,null,null,null,null,null,null,null,null,null,null,null,null,null,null,null,null,null,null,null,null,null,null,null,null,null,null,null,null,null,null,{"$f":"IF(MAX($BQ$21:$CA$21)=5,BQ21,BQ21+0.5*(5-MAX($BQ$21:$CA$21)))","v":0},{"$f":"IF(MAX($BQ$21:$CA$21)=5,BR21,BR21+0.5*(5-MAX($BQ$21:$CA$21)))","v":1.4285714285714286},3.5714285714285716,5,5,5,5,5,5,5,5]
[null,null,null,null,null,null,null,null,null,null,null,null,null,null,null,null,null,null,null,null,null,null,null,null,null,null,null,null,null,null,null,null,null,null,null,null,null,null,null,null,null,null,null,null,null,null,null,null,null,null,null,null,null,null,null,null,null,null,null,null,null,null,null,null,null,null,null,null,{"$f":"IF(MAX($BQ$22:$CA$22)=5,BQ22,BQ22+0.5*(5-MAX($BQ$22:$CA$22)))","v":3.2142857142857144},{"$f":"IF(MAX($BQ$22:$CA$22)=5,BR22,BR22+0.5*(5-MAX($BQ$22:$CA$22)))","v":1.7857142857142856},1.7857142857142856,3.2142857142857144,3.2142857142857144,3.2142857142857144,3.2142857142857144,3.2142857142857144,3.2142857142857144,3.2142857142857144,3.2142857142857144]
[]
[null,null,null,null,null,null,null,null,null,null,null,null,null,null,null,null,null,null,null,null,null,null,null,null,null,null,null,null,null,null,null,null,null,null,null,null,null,null,null,null,null,null,null,null,null,null,null,null,null,null,null,null,null,null,null,null,null,null,null,null,null,null,null,null,null,null,null,null,{"$f":"BQ24","v":0},{"$f":"CA24","v":5},null,{"$f":"MIN(BQ24:CA24)","v":0},{"$f":"MAX(BQ24:CA24)","v":5},null,{"$f":"MAX(BQ24:CA24)+0.4","v":5.4},{"$f":"MAX(BQ24:CA24)+0.4","v":5.4},null,null,{"$f":"0.5*(BU27-BT27)+BT27","v":2.5},{"$f":"0.5*(BX27-BW27)+BW27","v":5.4}]
[null,null,null,null,null,null,null,null,null,null,null,null,null,null,null,null,null,null,null,null,null,null,null,null,null,null,null,null,null,null,null,null,null,null,null,null,null,null,null,null,null,null,null,null,null,null,null,null,null,null,null,null,null,null,null,null,null,null,null,null,null,null,null,null,null,null,null,null,{"$f":"BQ25","v":3.2142857142857144},{"$f":"CA25","v":3.2142857142857144},null,{"$f":"MAX(BQ25:CA25)+0.4","v":3.6142857142857143},{"$f":"MAX(BQ25:CA25)+0.4","v":3.6142857142857143},null,{"$f":"MIN(BQ25:CA25)","v":1.7857142857142856},{"$f":"MAX(BQ25:CA25)","v":3.2142857142857144},null,null,{"$f":"0.5*(BU28-BT28)+BT28","v":3.6142857142857143},{"$f":"0.5*(BX28-BW28)+BW28","v":2.5}]
[]
[]
[null,null,null,null,null,null,null,null,null,null,null,null,null,null,null,null,null,null,null,null,null,null,null,null,null,null,null,null,null,null,null,null,null,null,null,null,null,null,null,null,null,null,null,null,null,null,null,null,null,null,null,null,null,null,null,null,null,null,null,null,null,null,null,null,null,null,null,null,null,"Trapezoidal","Triangular","Parabolic","Rectangular","chosen",null,{"$f":"T14","v":1},0]
[null,null,null,null,null,null,null,null,null,null,null,null,null,null,null,null,null,null,null,null,null,null,null,null,null,null,null,null,null,null,null,null,null,null,null,null,null,null,null,null,null,null,null,null,null,null,null,null,null,null,null,null,null,null,null,null,null,null,null,null,null,null,null,null,null,null,null,1,0.01,{"$f":"(1/$T$15)*(($CI$3/$CJ$3)^(2/3))*(($BQ32/100)^(1/2))*$CI$3*1000","v":7863.7897579270484},{"$f":"(1/$T$15)*(($CI$4/$CJ$4)^(2/3))*(($BQ32/100)^(1/2))*$CI$4*1000","v":2267.715788525999},{"$f":"(1/$T$15)*(($CI$5/$CJ$5)^(2/3))*(($BQ32/100)^(1/2))*$CI$5*1000","v":2055.4122871975833},{"$f":"(1/$T$15)*(($CI$6/$CJ$6)^(2/3))*(($BQ32/100)^(1/2))*$CI$6*1000","v":3867.1589373406405},{"$f":"HLOOKUP($O$7,$BR$31:$BU$52,BP33,FALSE)","v":7863.7897579270484},null,{"$f":"BX31","v":1},{"$f":"R24","v":78637.897579270488}]
[null,null,null,null,null,null,null,null,null,null,null,null,null,null,null,null,null,null,null,null,null,null,null,null,null,null,null,null,null,null,null,null,null,null,null,null,null,null,null,null,null,null,null,null,null,null,null,null,null,null,null,null,null,null,null,null,null,null,null,null,null,null,null,null,null,null,null,2,0.05,17583.968459491498,5070.7666567936722,4596.0415959621168,8647.230263689522,17583.968459491498,null,0,{"$f":"BY32","v":78637.897579270488}]
[null,null,null,null,null,null,null,null,null,null,null,null,null,null,null,null,null,null,null,null,null,null,null,null,null,null,null,null,null,null,null,null,null,null,null,null,null,null,null,null,null,null,null,null,null,null,null,null,null,null,null,null,null,null,null,null,null,null,null,null,null,null,null,null,null,null,null,3,0.1,24867.486675753611,7171.1469776668873,6499.7843582405094,12229.030315872795,24867.486675753611]
[null,null,null,null,null,null,null,null,null,null,null,null,null,null,null,null,null,null,null,null,null,null,null,null,null,null,null,null,null,null,null,null,null,null,null,null,null,null,null,null,null,null,null,null,null,null,null,null,null,null,null,null,null,null,null,null,null,null,null,null,null,null,null,null,null,null,null,4,0.2,35167.936918982996,10141.533313587344,9192.0831919242337,17294.460527379044,35167.936918982996]
[null,null,null,null,null,null,null,null,null,null,null,null,null,null,null,null,null,null,null,null,null,null,null,null,null,null,null,null,null,null,null,null,null,null,null,null,null,null,null,null,null,null,null,null,null,null,null,null,null,null,null,null,null,null,null,null,null,null,null,null,null,null,null,null,null,null,null,5,0.3,43071.750378947341,12420.790913863046,11257.956746714031,21181.301834391757,43071.750378947341]
[null,null,null,null,null,null,null,null,null,null,null,null,null,null,null,null,null,null,null,null,null,null,null,null,null,null,null,null,null,null,null,null,null,null,null,null,null,null,null,null,null,null,null,null,null,null,null,null,null,null,null,null,null,null,null,null,null,null,null,null,null,null,null,null,null,null,null,6,0.4,49734.973351507222,14342.293955333775,12999.568716481019,24458.060631745589,49734.973351507222]
[null,null,null,null,null,null,null,null,null,null,null,null,null,null,null,null,null,null,null,null,null,null,null,null,null,null,null,null,null,null,null,null,null,null,null,null,null,null,null,null,null,null,null,null,null,null,null,null,null,null,null,null,null,null,null,null,null,null,null,null,null,null,null,null,null,null,null,7,0.5,55605.390636555356,16035.172118705326,14533.959664115624,27344.943085197294,55605.390636555356]
[null,null,null,null,null,null,null,null,null,null,null,null,null,null,null,null,null,null,null,null,null,null,null,null,null,null,null,null,null,null,null,null,null,null,null,null,null,null,null,null,null,null,null,null,null,null,null,null,null,null,null,null,null,null,null,null,null,null,null,null,null,null,null,null,null,null,null,8,0.6,60912.653541055835,17565.65096578563,15921.155115812669,29954.884322914942,60912.653541055835]
[null,null,null,null,null,null,null,null,null,null,null,null,null,null,null,null,null,null,null,null,null,null,null,null,null,null,null,null,null,null,null,null,null,null,null,null,null,null,null,null,null,null,null,null,null,null,null,null,null,null,null,null,null,null,null,null,null,null,null,null,null,null,null,null,null,null,null,9,0.7,65793.185475256367,18973.07151799904,17196.812987451947,32354.972991269071,65793.185475256367]
[null,null,null,null,null,null,null,null,null,null,null,null,null,null,null,null,null,null,null,null,null,null,null,null,null,null,null,null,null,null,null,null,null,null,null,null,null,null,null,null,null,null,null,null,null,null,null,null,null,null,null,null,null,null,null,null,null,null,null,null,null,null,null,null,null,null,null,10,0.8,70335.873837965992,20283.066627174689,18384.166383848467,34588.921054758088,70335.873837965992]
[null,null,null,null,null,null,null,null,null,null,null,null,null,null,null,null,null,null,null,null,null,null,null,null,null,null,null,null,null,null,null,null,null,null,null,null,null,null,null,null,null,null,null,null,null,null,null,null,null,null,null,null,null,null,null,null,null,null,null,null,null,null,null,null,null,null,null,11,0.9,74602.460027260851,21513.440933000664,19499.35307472153,36687.090947618388,74602.460027260851]
[null,null,null,null,null,null,null,null,null,null,null,null,null,null,null,null,null,null,null,null,null,null,null,null,null,null,null,null,null,null,null,null,null,null,null,null,null,null,null,null,null,null,null,null,null,null,null,null,null,null,null,null,null,null,null,null,null,null,null,null,null,null,null,null,null,null,null,12,1,78637.897579270488,22677.157885259992,20554.122871975833,38671.589373406408,78637.897579270488]
[null,null,null,null,null,null,null,null,null,null,null,null,null,null,null,null,null,null,null,null,null,null,null,null,null,null,null,null,null,null,null,null,null,null,null,null,null,null,null,null,null,null,null,null,null,null,null,null,null,null,null,null,null,null,null,null,null,null,null,null,null,null,null,null,null,null,null,13,2,111210.78127311071,32070.344237410653,29067.919328231248,54689.886170394588,111210.78127311071]
[null,null,null,null,null,null,null,null,null,null,null,null,null,null,null,null,null,null,null,null,null,null,null,null,null,null,null,null,null,null,null,null,null,null,null,null,null,null,null,null,null,null,null,null,null,null,null,null,null,null,null,null,null,null,null,null,null,null,null,null,null,null,null,null,null,null,null,14,3,136204.83400769409,39277.989628531497,35600.785119275672,66981.157604180567,136204.83400769409]
[null,null,null,null,null,null,null,null,null,null,null,null,null,null,null,null,null,null,null,null,null,null,null,null,null,null,null,null,null,null,null,null,null,null,null,null,null,null,null,null,null,null,null,null,null,null,null,null,null,null,null,null,null,null,null,null,null,null,null,null,null,null,null,null,null,null,null,15,4,157275.79515854098,45354.315770519985,41108.245743951666,77343.178746812817,157275.79515854098]
[null,null,null,null,null,null,null,null,null,null,null,null,null,null,null,null,null,null,null,null,null,null,null,null,null,null,null,null,null,null,null,null,null,null,null,null,null,null,null,null,null,null,null,null,null,null,null,null,null,null,null,null,null,null,null,null,null,null,null,null,null,null,null,null,null,null,null,16,5,175839.68459491499,50707.666567936714,45960.415959621161,86472.302636895212,175839.68459491499]
[null,null,null,null,null,null,null,null,null,null,null,null,null,null,null,null,null,null,null,null,null,null,null,null,null,null,null,null,null,null,null,null,null,null,null,null,null,null,null,null,null,null,null,null,null,null,null,null,null,null,null,null,null,null,null,null,null,null,null,null,null,null,null,null,null,null,null,17,6,192622.72351445718,55547.465635419008,50347.113146809912,94725.661507281926,192622.72351445718]
[null,null,null,null,null,null,null,null,null,null,null,null,null,null,null,null,null,null,null,null,null,null,null,null,null,null,null,null,null,null,null,null,null,null,null,null,null,null,null,null,null,null,null,null,null,null,null,null,null,null,null,null,null,null,null,null,null,null,null,null,null,null,null,null,null,null,null,18,7,208056.32061971788,59998.120206145344,54381.097536312744,102315.40828564149,208056.32061971788]
[null,null,null,null,null,null,null,null,null,null,null,null,null,null,null,null,null,null,null,null,null,null,null,null,null,null,null,null,null,null,null,null,null,null,null,null,null,null,null,null,null,null,null,null,null,null,null,null,null,null,null,null,null,null,null,null,null,null,null,null,null,null,null,null,null,null,null,19,8,222421.56254622142,64140.688474821305,58135.838656462496,109379.77234078918,222421.56254622142]
[null,null,null,null,null,null,null,null,null,null,null,null,null,null,null,null,null,null,null,null,null,null,null,null,null,null,null,null,null,null,null,null,null,null,null,null,null,null,null,null,null,null,null,null,null,null,null,null,null,null,null,null,null,null,null,null,null,null,null,null,null,null,null,null,null,null,null,20,9,235913.69273781142,68031.473655779962,61662.368615927488,116014.7681202192,235913.69273781142]
[null,null,null,null,null,null,null,null,null,null,null,null,null,null,null,null,null,null,null,null,null,null,null,null,null,null,null,null,null,null,null,null,null,null,null,null,null,null,null,null,null,null,null,null,null,null,null,null,null,null,null,null,null,null,null,null,null,null,null,null,null,null,null,null,null,null,null,21,10,248674.86675753613,71711.469776668877,64997.843582405098,122290.30315872795,248674.86675753613]
[null,null,null,null,null,null,null,null,null,null,null,null,null,null,null,null,null,null,null,null,null,null,null,null,null,null,null,null,null,null,null,null,null,null,null,null,null,null,null,null,null,null,null,null,null,null,null,null,null,null,null,null,null,null,null,null,null,null,null,null,null,null,null,null,null,null,null,22]